lending/lending_fUSD_20240120
["ID","MTS","AMOUNT","RATE_DAILY","PERIOD"]
[312334900,1705788632053,-386.62,0.00021644,2]
[312334901,1705788632062,-150.7,0.0002169,2]
[312334902,1705788632071,-150.7,0.00021748,2]
[312334903,1705788632080,-150.7,0.00021806,2]
[312334904,1705788632089,-150.7,0.00021864,2]
[312334905,1705788632098,-250.0,0.00021918,2]
[312334906,1705788632107,-150.7,0.00021923,2]
[312334907,1705788632117,-150.7,0.00021981,2]
[312334908,1705788632126,-1519.83583226,0.00021981,2]
[312334909,1705788632135,-500.0,0.00021998,2]
[312334910,1705788632144,-150.0,0.00021999,2]
[312334911,1705788632153,-204.54972174,0.00022,2]
[312334912,1705788632162,-1042.29691372,0.00022,2]
[312334913,1705788632171,-176.36,0.00022,2]
[312334914,1705788632180,-150.7,0.00022039,2]
[312334915,1705788632188,-150.7,0.00022097,2]
[312334916,1705788632197,-150.7,0.00022156,2]
[312334917,1705788632206,-150.7,0.00022214,2]
[312334918,1705788632215,-150.7,0.00022272,2]
[312334919,1705788632224,-150.7,0.0002233,2]
[312334920,1705788632233,-1133.715795,0.00022445,3]
[312334921,1705788632242,-386.62,0.00022445,2]
[312334922,1705788632251,-411.36312889,0.00022539,2]
[312334923,1705788632260,-204924.62153801,0.0002254,2]
[312334924,1705788632304,-737.50852455,0.0002254,2]
[312334925,1705788632324,-271.49471219,0.0002254,2]
[312334926,1705788632335,-3274.75786361,0.0002254,2]
[312334927,1705788632350,-562.34159793,0.0002254,2]
[312334928,1705788632361,-1271.24,0.0002254,2]
[312334929,1705788632372,-2933.54519977,0.0002254,2]
[312334930,1705788632384,-12471.0,0.0002254,2]
[312334931,1705788632395,-3463.34807112,0.0002254,2]
[312334932,1705788632406,-77897.14249282,0.0002254,2]
[312334933,1705788632416,-500.0,0.00022546,2]
[312334934,1705788632425,-352.54,0.00022548,2]
[312334935,1705788632435,-403.5124,0.0002263,10]
[312334936,1705788632444,-150.0,0.00022651,2]
[312334937,1705788632453,-281.12333438,0.00022668,2]
[312334938,1705788632462,-992.1418,0.00022669,2]
[312334939,1705788632472,-3658.5642,0.000227,2]
[312334940,1705788632481,-800.9175233,0.000227,2]
[312334941,1705788632491,-161.99,0.00022723,2]
[312334942,1705788632500,-10000.0,0.0002274,2]
[312334943,1705788632510,-222.52,0.00022748,2]
[312334944,1705788632519,-2306.97835772,0.00022767,2]
[312334945,1705788632528,-384.65105166,0.00022767,2]
[312334946,1705788632538,-2947.31448158,0.00022767,2]
[312334947,1705788632547,-155.0,0.00022767,7]
[312334948,1705788632556,-282.102,0.00022768,2]
[312334949,1705788632770,-1000.0,0.00022799,2]
[312334950,1705788632779,-30891.20405627,0.000228,2]
[312334951,1705788632789,-800.9175233,0.000228,2]
[312334952,1705788632799,-161.99,0.00022814,2]
[312334953,1705788632808,-284.64078375,0.00022889,2]
[312334954,1705788632818,-3888.27209953,0.00022897,2]
[312334955,1705788632827,-3144.72559597,0.00022898,2]
[312334956,1705788632837,-500.0,0.00022898,2]
[312334957,1705788632847,-396.99740447,0.00022898,10]
[312334958,1705788632856,-107225.70795692,0.00022899,2]
[312334959,1705788632870,-287.75294492,0.00022899,2]
[312334960,1705788632882,-1069.12322619,0.00022899,2]
[312334961,1705788632893,-358.97557567,0.00022899,2]
[312334962,1705788632917,-2176.86224856,0.00022899,2]
[312334963,1705788632929,-1463.55396328,0.00022899,2]
[312334964,1705788632941,-335.00350038,0.00022899,2]
[312334965,1705788637812,-571.79463963,0.00022669,2]
[312334966,1705788637869,-825.57805478,0.00022669,2]
[312334967,1705788637882,-602.62730559,0.00022669,2]
[312334968,1705788637892,-261.50986726,0.00022799,2]
[312334969,1705788637901,-261.50986725,0.00022824,2]
[312334970,1705788637910,-261.50986725,0.0002285,2]
[312334971,1705788637920,-36358.53850434,0.00022899,2]
[312334972,1705788637977,-916.156,0.00022899,2]
[312334973,1705788637988,-561.2699,0.00022899,2]
[312334974,1705788638001,-333.4011,0.00022899,2]
[312334975,1705788638038,-1429.80016735,0.00022899,2]
[312335172,1705788642661,-261.50986725,0.00022875,2]
[312335173,1705788642670,-45.97890621,0.00022899,2]
[312335175,1705788642717,-29655.76611036,0.00022899,2]
[312335176,1705788642731,-45042.81291992,0.00022899,2]
[312335177,1705788642826,-3719.27761736,0.00022899,2]
[312335206,1705788645633,-23825.95453527,0.00022899,2]
[312335213,1705788645690,-546.75931383,0.00022899,2]
[312335215,1705788645701,-8579.97989359,0.00022899,2]
[312335217,1705788645712,-379.80612017,0.00022899,2]
[312335222,1705788645746,-11285.74590525,0.00022899,2]
[312335224,1705788645758,-13252.97645321,0.00022899,2]
[312335227,1705788645773,-5781.88633881,0.00022899,2]
[312335231,1705788645807,-349.52660475,0.00022899,2]
[312335233,1705788645818,-16446.4,0.00022899,2]
[312335239,1705788645866,-592.826,0.00022899,2]
[312335242,1705788645878,-421.842,0.00022899,2]
[312335254,1705788645984,-67051.33020271,0.00022899,2]
[312335256,1705788645995,-1798.92231475,0.00022899,2]
[312335258,1705788646007,-457.16083985,0.00022899,2]
[312335260,1705788646018,-4587.7,0.00022899,2]
[312335262,1705788646031,-308.07407888,0.00022899,2]
[312335263,1705788646042,-1129.3009947,0.00022899,2]
[312335268,1705789088021,305.810498,0.00035893,30]
[312335269,1705789287098,294.18201741,0.00022995,120]
[312335279,1705789831808,-283.81,0.00019646,2]
[312335280,1705789831817,-204.0,0.00020262,2]
[312335281,1705789831826,-167.67638365,0.00021425,2]
[312335282,1705789831836,-162.2,0.00021525,2]
[312335283,1705789831846,-200.0,0.00021532,2]
[312335284,1705789831855,-260.71,0.0002154,2]
[312335285,1705789831864,-800.0,0.00021558,2]
[312335286,1705789831874,-1549.55785362,0.00021568,2]
[312335287,1705789831885,-365.30441413,0.00021568,2]
[312335288,1705789831897,-85.13773225,0.00021568,2]
[312335289,1705789831906,-168.27,0.0002157,2]
[312335290,1705789831915,-248.3363081,0.00021644,2]
[312335291,1705789831926,-883.7836919,0.00021644,2]
[312335292,1705789831935,-380.72,0.00021644,2]
[312335293,1705789831944,-200.0,0.00021745,2]
[312335294,1705789831953,-43.8218151,0.00021759,2]
[312335295,1705789831966,-114.0281849,0.00021759,2]
[312335296,1705789831975,-158.23265953,0.00021829,2]
[312335297,1705789831985,-157.33,0.0002185,2]
[312335298,1705789831995,-150.99,0.0002185,2]
[312335299,1705789832005,-283.81,0.0002191,2]
[312335300,1705789832016,-250.0,0.00021918,2]
[312335301,1705789832026,-161.86,0.00021925,2]
[312335302,1705789832036,-221.02,0.00021925,3]
[312335303,1705789832045,-158.2326595,0.00021936,2]
[312335304,1705789832054,-150.0,0.00021994,2]
[312335305,1705789832063,-150.0,0.00021994,2]
[312335306,1705789832072,-735.20245442,0.00021995,2]
[312335307,1705789832081,-514.19962752,0.00022012,2]
[312335309,1705789832110,-528.0972862,0.00022012,2]
[312335311,1705789832119,-277.34,0.00022013,2]
[312335313,1705789832128,-161.86,0.00022013,2]
[312335315,1705789832137,-50.6327138,0.00022043,2]
[312335317,1705789832149,-107.5999457,0.00022043,2]
[312335319,1705789832160,-167.67638363,0.00022054,2]
[312335321,1705789832169,-161.86,0.00022101,2]
[312335323,1705789832179,-158.2326595,0.0002215,2]
[312335325,1705789832188,-161.86,0.00022188,2]
[312335326,1705789832197,-158.2326595,0.00022257,2]
[312335327,1705789832207,-161.86,0.00022276,2]
[312335328,1705789832216,-204.0,0.00022353,5]
[312335329,1705789832225,-161.86,0.00022364,2]
[312335330,1705789832235,-158.2326595,0.00022365,2]
[312335331,1705789832244,-261.75364376,0.00022445,2]
[312335332,1705789832256,-118.96635624,0.00022445,2]
[312335333,1705789832266,-158.2326595,0.00022472,2]
[312335334,1705789832275,-68.78098426,0.00022579,2]
[312335335,1705789832286,-89.45167524,0.00022579,2]
[312335336,1705789832295,-167.67638363,0.00022682,2]
[312335337,1705789832304,-158.2326595,0.00022686,2]
[312335338,1705789832313,-610.42176846,0.0002274,2]
[312335339,1705789832334,-973.18823154,0.0002274,2]
[312335340,1705789832343,-157.85,0.00022782,2]
[312335341,1705789832352,-158.2326595,0.00022793,2]
[312335342,1705789832361,-500.0,0.00022816,2]
[312335343,1705789832370,-143.90841271,0.00022816,2]
[312335344,1705789832381,-56.09158729,0.00022816,2]
[312335345,1705789832390,-302.96537039,0.00022881,2]
[312335346,1705789832399,-795.882,0.00022895,2]
[312335347,1705789832408,-2080.54723805,0.00022896,3]
[312335348,1705789832417,-261.50986725,0.00022896,2]
[312335349,1705789832426,-866.13315264,0.00022896,2]
[312335350,1705789832435,-817.43473583,0.00022897,2]
[312335351,1705789832444,-360.4683,0.00022897,2]
[312335352,1705789832452,-5330.5474,0.00022897,2]
[312335353,1705789832461,-596.8919,0.00022897,2]
[312335354,1705789832470,-332.5083,0.00022897,2]
[312335355,1705789832479,-2779.50067626,0.00022897,2]
[312335356,1705789832488,-155.0,0.00022898,2]
[312335357,1705789832497,-529.15035393,0.00022898,2]
[312335358,1705789832507,-211.63392257,0.00022898,2]
[312335359,1705789832517,-866.13315262,0.00022898,2]
[312335360,1705789832527,-401.01749329,0.000229,2]
[312335361,1705789832536,-401.01749329,0.000229,2]
[312335362,1705789832545,-401.01749329,0.000229,2]
[312335363,1705789832555,-401.01749329,0.000229,2]
[312335364,1705789832565,-401.01749329,0.000229,2]
[312335365,1705789832574,-401.01749329,0.000229,2]
[312335366,1705789832583,-158.2326595,0.000229,2]
[312335367,1705789832593,-164.16233279,0.000229,2]
[312335368,1705789832602,-296.3931,0.000229,2]
[312335369,1705789832611,-866.13315262,0.000229,2]
[312335370,1705789832622,-161.99,0.00022905,2]
[312335371,1705789832632,-9917.16990978,0.0002298,2]
[312335372,1705789832642,-1879.9866094,0.00022995,3]
[312335373,1705789832651,-282.89706329,0.00022995,2]
[312335374,1705789832660,-1023.53284118,0.00022995,2]
[312335375,1705789832669,-847.06410669,0.00022995,2]
[312335376,1705789832678,-5353.99247874,0.00022995,2]
[312335377,1705789832688,-3196.28243404,0.00022995,2]
[312335378,1705789832698,-790599.05971345,0.00022995,2]
[312335379,1705789832711,-2952.48971687,0.00022995,2]
[312335380,1705789832735,-1274.52843659,0.00022995,2]
[312335381,1705789832748,-1645.13202341,0.00022995,2]
[312335382,1705789832761,-1044.775,0.00022995,2]
[312335383,1705789832773,-958.19999987,0.00022995,2]
[312335384,1705789832784,-1164.11847118,0.00022995,2]
[312335385,1705789832813,-19658.43810842,0.00022995,2]
[312335386,1705789832825,-4353.7,0.00022995,2]
[312335387,1705789832837,-2197.2664254,0.00022995,2]
[312335388,1705789832848,-316.617,0.00022995,2]
[312335400,1705789837895,-12069.01324929,0.00022995,2]
[312335401,1705789837909,-6170.57082958,0.00022995,2]
[312335402,1705789837923,-414.69,0.00022995,2]
[312335403,1705789837951,-827.13959953,0.00022995,2]
[312335404,1705789838009,-1317.0138514,0.00022995,2]
[312335405,1705789838029,-668.6549,0.00022995,2]
[312335406,1705789838121,-26479.21730968,0.00022995,2]
[312335407,1705789838136,-104706.36337415,0.00022995,2]
[312335408,1705789838179,-403.12604408,0.00022995,2]
[312335409,1705789838194,-705.17218868,0.00022995,2]
[312335410,1705789838215,-623.31486525,0.00022995,2]
[312335551,1705789840383,-658.38525432,0.00022895,2]
[312335554,1705789840397,-341.61474568,0.00022895,2]
[312335556,1705789840408,-51.64350682,0.00022995,2]
[312335558,1705789840423,-280.414709,0.00022995,2]
[312335620,1705789841032,-4371.5906833,0.00022995,2]
[312335623,1705789841046,-910.13477517,0.00022995,2]
[312335625,1705789841057,-161.99,0.00022996,2]
[312335627,1705789841067,-797.28623782,0.00022996,2]
[312335632,1705789841108,-271.34559548,0.00022996,2]
[312335635,1705789841121,-347.82086767,0.00022996,2]
[312335637,1705789841132,-916.37419282,0.00022996,2]
[312335639,1705789841143,-286.58393191,0.00022996,2]
[312335641,1705789841157,-155.0,0.00022996,2]
[312335643,1705789841168,-318.58873855,0.00022996,2]
[312335646,1705789841178,-1143.30502142,0.00022996,2]
[312335648,1705789841191,-667.95690053,0.00022996,2]
[312335649,1705789841215,-555.45650775,0.00022996,2]
[312335650,1705789841228,-778.00716627,0.00022996,2]
[312335651,1705789841239,-213.75820307,0.00022996,2]
[312335652,1705789841252,-3488.73007933,0.00022996,2]
[312335673,1705789842846,-8543.59378781,0.00022996,2]
[312335678,1705789842907,-427.10354647,0.00022996,2]
[312335679,1705789842919,-389.167842,0.00022996,2]
[312335680,1705789842966,-410.5399995,0.00022996,2]
[312335681,1705789842977,-4884.48,0.00022996,2]
[312335682,1705789843084,-869.58054229,0.00022996,2]
[312335683,1705789843097,-756.69074724,0.00022996,2]
[312335684,1705789843108,-474.17972,0.00022996,2]
[312335685,1705789843120,-675.30912531,0.00022996,2]
[312335688,1705789845905,-205.9887,0.00022895,2]
[312335689,1705789845915,-1865.49140221,0.00022996,2]
[312335690,1705789846016,-12041.08875246,0.00022996,2]
[312335691,1705789846028,-7567.08157827,0.00022996,2]
[312335692,1705789846039,-1869.69633417,0.00022996,2]
[312335693,1705789846074,-11024.20335073,0.00022996,2]
[312335694,1705789846087,-1226.36147996,0.00022996,2]
[312335695,1705789846133,-13265.88453153,0.00022996,2]
[312335696,1705789846146,-1581.2678062,0.00022996,2]
[312335706,1705789953934,204.0,0.00019262,2]
[312335707,1705789990138,305.810498,0.00035895,30]
[312335709,1705790673637,204.0,0.00019299,2]
[312335710,1705790756136,2751.35599315,0.00019299,2]
[312335711,1705790775985,2390.39323209,0.00019203,2]
[312335712,1705790794297,204.0,0.00019299,2]
[312335716,1705790824214,458.14179625,0.00019203,2]
[312335726,1705790851569,3005.22093109,0.00019203,2]
[312335727,1705790853751,207.0,0.00019299,2]
[312335728,1705790888186,305.810498,0.0003589,30]
[312335741,1705791031964,-155.0,0.00019846,2]
[312335742,1705791031973,-155.0,0.00019846,2]
[312335743,1705791031983,-337.77789618,0.00019846,2]
[312335744,1705791031992,-155.0,0.00019847,2]
[312335745,1705791032001,-1256.70561379,0.00019847,2]
[312335746,1705791032011,-302.37969356,0.00019847,2]
[312335747,1705791032020,-525.07174403,0.00019847,2]
[312335748,1705791032030,-242.50576427,0.00019847,2]
[312335749,1705791032046,-524.49608589,0.00019847,2]
[312335750,1705791032148,-25.50391411,0.00019847,2]
[312335751,1705791032172,-221.28508256,0.00019847,2]
[312335752,1705791032181,-190.97652873,0.00019847,2]
[312335753,1705791032191,-1853.21827402,0.00019848,2]
[312335754,1705791032200,-239.59683467,0.00019848,2]
[312335755,1705791032211,-550.0,0.00019848,2]
[312335756,1705791032237,-421.87460659,0.00019848,2]
[312335757,1705791032250,-1916.28100147,0.00019848,2]
[312335758,1705791032259,-516.75299771,0.00019848,2]
[312335759,1705791032290,-687.32766733,0.00019848,2]
[312335760,1705791032299,-1045.79945445,0.00019848,2]
[312335761,1705791032308,-2948.28581293,0.00019848,2]
[312335762,1705791032317,-419.73126398,0.00019848,2]
[312335763,1705791032327,-422.69649213,0.00019848,2]
[312335764,1705791032342,-2622.94759394,0.00019848,2]
[312335767,1705791032351,-155.0,0.00019848,2]
[312335770,1705791032361,-160.73027648,0.00019848,2]
[312335773,1705791032370,-155.0,0.00019849,2]
[312335776,1705791032379,-400.71715327,0.00019849,2]
[312335778,1705791032388,-314.41237187,0.00019849,2]
[312335780,1705791032398,-155.0,0.00019849,2]
[312335782,1705791032407,-525.40906234,0.00019849,2]
[312335784,1705791032416,-2021.25442929,0.00019849,2]
[312335786,1705791032426,-196.82515123,0.0001985,2]
[312335788,1705791032435,-250.42352751,0.0001985,2]
[312335790,1705791032445,-16769.48246492,0.0001985,2]
[312335792,1705791032454,-1467.99107852,0.0001985,2]
[312335799,1705791038021,-155.0,0.00019845,2]
[312335800,1705791038032,-529.54586696,0.00019845,2]
[312335801,1705791038042,-629.1543526,0.00019845,2]
[312335802,1705791038051,-218.05929931,0.00019845,2]
[312335803,1705791038060,-769.71890791,0.00019845,2]
[312335804,1705791038082,-999.02003167,0.00019845,2]
[312335805,1705791038091,-177.91292476,0.00019845,2]
[312335806,1705791038100,-2320.76864865,0.00019845,2]
[312335807,1705791038109,-2903.08663668,0.00019845,2]
[312335808,1705791038118,-1061.34191461,0.00019845,2]
[312335809,1705791038128,-428.84898768,0.00019846,2]
[312335810,1705791038137,-155.0,0.00019846,2]
[312335811,1705791038145,-155.0,0.00019846,2]
[312335812,1705791038154,-232.10612969,0.00019846,2]
[312335813,1705791038164,-5445.7964682,0.00019846,2]
[312335814,1705791038174,-9092.14295328,0.0001985,2]
[312335815,1705791038183,-4638.11355098,0.0001985,2]
[312335816,1705791038194,-10529.67645274,0.0001985,2]
[312335817,1705791038204,-301.41783471,0.00019851,2]
[312335818,1705791038214,-1044.43077942,0.00019851,2]
[312335819,1705791038223,-155.0,0.00019851,2]
[312335820,1705791038232,-226.11786442,0.00019851,2]
[312335821,1705791038242,-155.0,0.00019851,2]
[312335822,1705791038253,-155.0,0.00019851,2]
[312335823,1705791038263,-155.0,0.00019851,2]
[312335824,1705791038272,-155.0,0.00019851,2]
[312335825,1705791038281,-32399.47289721,0.00019851,2]
[312335826,1705791038294,-10619.77956822,0.00019851,2]
[312335827,1705791038305,-361.86478892,0.00019851,2]
[312335828,1705791038314,-3861.05352381,0.00019851,2]
[312335829,1705791038325,-155.0,0.00019851,2]
[312335830,1705791038334,-155.0,0.00019851,2]
[312335831,1705791038344,-917.23152402,0.00019851,2]
[312335832,1705791038353,-260.29229258,0.00019851,2]
[312335833,1705791038363,-1709.96186533,0.00019852,2]
[312335834,1705791038372,-4274.40730541,0.00019852,2]
[312335835,1705791038382,-473.45584329,0.00019852,2]
[312335836,1705791038391,-155.0,0.00019852,2]
[312335837,1705791038401,-1812.76023782,0.00019852,2]
[312335838,1705791038410,-228.3967642,0.00019852,2]
[312335839,1705791038419,-404.48659624,0.00019852,2]
[312335840,1705791038429,-204.48375983,0.00019852,2]
[312335841,1705791038439,-265.60479765,0.00019852,2]
[312335842,1705791038450,-310.31123781,0.00019852,2]
[312335843,1705791038462,-487.24115174,0.00019852,2]
[312335844,1705791038472,-155.0,0.00019852,2]
[312335845,1705791038482,-211.78439045,0.00019852,2]
[312335846,1705791038492,-233.29692962,0.00019852,2]
[312335847,1705791038502,-3145.8449708,0.00019852,2]
[312335848,1705791038513,-418.28828988,0.00019852,2]
[312335849,1705791038525,-543.13884627,0.00019852,2]
[312335850,1705791038536,-524.19831016,0.00019852,2]
[312335851,1705791038546,-395.34025327,0.00019852,2]
[312335852,1705791038555,-155.0,0.00019853,2]
[312335853,1705791038566,-203.37274756,0.00019853,2]
[312335854,1705791038575,-31.46263334,0.00019853,2]
[312335855,1705791038587,-4217.3337769,0.00019853,2]
[312335856,1705791038598,-286.78293325,0.00019853,2]
[312335857,1705791038608,-161.84530984,0.00019853,2]
[312335858,1705791038618,-384.3907569,0.00019853,2]
[312335859,1705791038628,-253.07011013,0.00019853,2]
[312335860,1705791038638,-155.0,0.00019853,2]
[312335861,1705791038648,-221.15744731,0.00019853,2]
[312335862,1705791038657,-2307.835347,0.00019853,2]
[312335863,1705791038666,-384.78381974,0.00019853,2]
[312335864,1705791038675,-1137.05646443,0.00019853,2]
[312335865,1705791038685,-202.76099161,0.00019853,2]
[312335866,1705791038694,-371.36730385,0.00019853,2]
[312335867,1705791038703,-327.32790039,0.00019853,2]
[312335868,1705791038713,-524.01683029,0.00019853,2]
[312335869,1705791038722,-3191.74123019,0.00019853,2]
[312335870,1705791038732,-171.96178332,0.00019853,2]
[312335872,1705791038741,-354.6810307,0.00019854,2]
[312335874,1705791038751,-940.96622262,0.00019854,2]
[312335876,1705791038760,-158.86466524,0.00019854,2]
[312335878,1705791038769,-155.0,0.00019854,2]
[312335880,1705791038779,-474.61336807,0.00019854,2]
[312335882,1705791038788,-155.0,0.00019855,2]
[312335884,1705791038797,-6441.03694263,0.00019855,2]
[312335886,1705791038806,-199.32847921,0.00019855,2]
[312335888,1705791038815,-234.50854067,0.00019855,2]
[312335890,1705791038824,-1365.33757079,0.00019856,2]
[312335892,1705791038833,-651.85793696,0.00019856,2]
[312335894,1705791038842,-2153.39804552,0.00019866,2]
[312335896,1705791038850,-255.42,0.0001987,2]
[312335898,1705791038859,-150.0,0.00019999,2]
[312335900,1705791038869,-1863.62905753,0.0002,2]
[312335902,1705791038878,-150.0,0.0002,2]
[312335904,1705791038887,-155.0,0.0002,2]
[312335906,1705791038896,-279.4509167,0.0002,2]
[312335907,1705791038906,-155.0,0.0002,2]
[312335908,1705791038915,-204.0,0.00020441,2]
[312335909,1705791038924,-155.0,0.00020854,2]
[312335910,1705791038933,-360.0,0.00020855,2]
[312335911,1705791038942,-245.5,0.00021348,2]
[312335912,1705791038951,-737.48,0.00021462,2]
[312335913,1705791038961,-157.63301952,0.00021473,2]
[312335914,1705791038970,-160.24,0.00021565,2]
[312335915,1705791038979,-219.43,0.00021573,2]
[312335916,1705791038987,-311.63,0.00021644,2]
[312335917,1705791038996,-435.35,0.00021664,2]
[312335918,1705791039005,-150.0,0.00021671,2]
[312335919,1705791039014,-166.45,0.00021683,2]
[312335920,1705791039024,-2000.0,0.00021693,2]
[312335921,1705791039033,-2193.1,0.00021693,2]
[312335922,1705791039042,-640.0,0.00021697,2]
[312335924,1705791039052,-286.95,0.00021809,2]
[312335926,1705791039061,-159.33,0.00021851,2]
[312335928,1705791039070,-164.06,0.00021905,2]
[312335930,1705791039079,-250.0,0.00021918,2]
[312335932,1705791039088,-210.0,0.00021999,2]
[312335934,1705791039097,-150.0,0.00022,2]
[312335936,1705791039106,-352.6,0.00022,2]
[312335938,1705791039115,-150.0,0.00022,2]
[312335940,1705791039123,-1042.29691372,0.00022,2]
[312335942,1705791039133,-255.42,0.00022134,2]
[312335944,1705791039142,-156.39,0.00022159,2]
[312335946,1705791039151,-157.63301951,0.00022187,2]
[312335948,1705791039161,-2074.93277737,0.00022304,2]
[312335950,1705791039170,-311.63,0.00022445,2]
[312335952,1705791039179,-151.00857465,0.00022548,2]
[312335954,1705791039188,-204.0,0.00022639,5]
[312335956,1705791039197,-540.139,0.00022669,2]
[312335958,1705791039206,-2679.67,0.00022669,2]
[312335960,1705791039215,-52146.237,0.00022669,2]
[312335962,1705791039224,-1139.78009003,0.00022696,2]
[312335964,1705791039233,-184.95359999,0.00022696,2]
[312335966,1705791039243,-184.95359995,0.00022747,2]
[312335968,1705791039252,-22328.2888723,0.00022764,2]
[312335970,1705791039261,-155.0,0.00022767,2]
[312335972,1705791039270,-7389.01602876,0.00022767,2]
[312335993,1705791039471,-2301.1932,0.00022767,2]
[312335996,1705791039484,-1798.10956692,0.00022767,2]
[312336002,1705791039552,-2809.7376293,0.00019845,2]
[312336004,1705791039571,-758.36707319,0.00019845,2]
[312336006,1705791039583,-4690.6,0.00019845,2]
[312336009,1705791039607,-25128.68644063,0.00019845,2]
[312336011,1705791039617,-13682.83535517,0.00022767,2]
[312336013,1705791039630,-3141.02477563,0.00022767,2]
[312336015,1705791039647,-162.2165362,0.00022767,2]
[312336017,1705791039656,-400.0,0.00022767,2]
[312336020,1705791039666,-2611.83116676,0.00022767,2]
[312336021,1705791039675,-638323.0,0.00022769,2]
[312336023,1705791039683,-294.5248,0.00022796,2]
[312336025,1705791039692,-205.9887,0.00022796,2]
[312336027,1705791039702,-718.0381,0.00022796,2]
[312336029,1705791039711,-69842.0345,0.00022796,2]
[312336031,1705791039719,-251.2595,0.00022796,2]
[312336033,1705791039728,-184.95359995,0.00022798,2]
[312336036,1705791039738,-303.6141,0.000228,2]
[312336038,1705791039747,-90135.3907,0.000228,2]
[312336040,1705791039755,-200.0,0.00022816,2]
[312336041,1705791039765,-184.95359995,0.00022849,2]
[312336043,1705791039774,-155.59197994,0.00022879,2]
[312336046,1705791039783,-1000.0,0.00022896,2]
[312336048,1705791039793,-500.0,0.00022896,2]
[312336049,1705791039802,-11490.5257,0.00022896,2]
[312336051,1705791039811,-1000.0,0.00022896,2]
[312336054,1705791039820,-8359.8173,0.00022896,2]
[312336056,1705791039830,-154.5966,0.00022896,2]
[312336060,1705791039839,-6285.1976,0.00022896,2]
[312336063,1705791039848,-1000.0,0.00022896,2]
[312336065,1705791039858,-6698.1181,0.00022896,2]
[312336067,1705791039867,-29538.7382,0.00022896,2]
[312336069,1705791039876,-412.7749,0.00022896,2]
[312336071,1705791039885,-452.25322641,0.00022897,2]
[312336072,1705791039894,-452.25322635,0.00022897,2]
[312336075,1705791039904,-452.25322635,0.00022898,2]
[312336076,1705791039914,-452.25322635,0.00022898,2]
[312336078,1705791039923,-452.25322635,0.00022899,2]
[312336081,1705791039932,-199.7686554,0.00022899,2]
[312336082,1705791039942,-660.24566651,0.00022899,2]
[312336084,1705791039951,-779.10767983,0.00022899,2]
[312336087,1705791039961,-182.1248519,0.00022899,2]
[312336089,1705791039970,-452.25322635,0.00022899,2]
[312336090,1705791039979,-199.7686554,0.000229,2]
[312336092,1705791039988,-660.24566649,0.000229,2]
[312336095,1705791039997,-779.10767983,0.000229,2]
[312336097,1705791040006,-452.25322635,0.000229,2]
[312336099,1705791040015,-7712.64208611,0.000229,2]
[312336101,1705791040025,-168.12312929,0.000229,2]
[312336102,1705791040034,-164.16233276,0.000229,2]
[312336104,1705791040043,-157.63301951,0.000229,2]
[312336106,1705791040053,-452.25322635,0.000229,2]
[312336109,1705791040062,-5000.0,0.000229,2]
[312336111,1705791040071,-1139.78009003,0.000229,2]
[312336113,1705791040080,-199.7686554,0.000229,2]
[312336115,1705791040089,-660.24566649,0.000229,2]
[312336117,1705791040098,-184.95359995,0.000229,2]
[312336119,1705791040108,-779.10767983,0.000229,2]
[312336121,1705791040117,-182.1248519,0.000229,2]
[312336123,1705791040126,-158.2579,0.00022992,2]
[312336124,1705791040135,-155.0,0.00022992,2]
[312336125,1705791040144,-155.0,0.00022992,2]
[312336126,1705791040154,-156.92219794,0.00022992,2]
[312336127,1705791040163,-441.70822702,0.00022992,2]
[312336128,1705791040172,-188.70735692,0.00022992,2]
[312336129,1705791040181,-155.38943818,0.00022992,2]
[312336130,1705791040191,-2139.47732276,0.00022992,2]
[312336131,1705791040200,-759.00584575,0.00022994,2]
[312336132,1705791040209,-3329.35169132,0.00022994,2]
[312336133,1705791040219,-155.0,0.00022994,2]
[312336134,1705791040228,-364.09538564,0.00022994,2]
[312336135,1705791040237,-155.0,0.00022994,2]